bitfinex/quotes_BTCUSD_20230905
["timestamp","ask_amount","ask_price","bid_price","bid_amount"]
[1693950287810,0.004,25747.0,25746.0,5.39094932]
[1693950288078,0.004,25747.0,25746.0,5.39052932]
[1693950288305,0.004,25747.0,25746.0,5.39040932]
[1693950288465,0.004,25747.0,25746.0,5.39052932]
[1693950288872,0.004,25747.0,25746.0,5.39082932]
[1693950289056,0.004,25747.0,25746.0,5.38992932]
[1693950289500,0.004,25747.0,25746.0,5.39058932]
[1693950289711,0.004,25747.0,25746.0,5.38980932]
[1693950289912,0.004,25747.0,25746.0,5.38962932]
[1693950290331,0.004,25747.0,25746.0,5.38968932]
[1693950290688,0.004,25747.0,25746.0,5.38878932]
[1693950290883,0.004,25747.0,25746.0,5.38788932]
[1693950291207,0.004,25747.0,25746.0,5.38830932]
[1693950291383,0.004,25747.0,25746.0,5.38752932]
[1693950291591,0.004,25747.0,25746.0,5.38794932]
[1693950291788,0.004,25747.0,25746.0,5.38800932]
[1693950291995,0.004,25747.0,25746.0,5.38788932]
[1693950292626,0.004,25747.0,25746.0,5.38794932]
[1693950292995,0.004,25747.0,25746.0,5.38791519]
[1693950293197,0.004,25747.0,25746.0,5.38881519]
[1693950293375,0.004,25747.0,25746.0,5.30863519]
[1693950293596,0.004,25747.0,25746.0,5.38791519]
[1693950293797,0.004,25747.0,25746.0,5.24849487]
[1693950294099,0.004,25747.0,25746.0,5.24873487]
[1693950294307,0.004,25747.0,25746.0,5.38870854]
[1693950294512,0.004,25747.0,25746.0,5.38882854]
[1693950294767,0.004,25747.0,25746.0,5.24921487]
[1693950294930,0.004,25747.0,25746.0,5.24951487]
[1693950295143,0.004,25747.0,25746.0,5.24825487]
[1693950295336,0.004,25747.0,25746.0,5.24849487]
[1693950295618,0.004,25747.0,25746.0,5.24843487]
[1693950295822,0.002,25747.0,25746.0,5.22299487]
[1693950296031,0.002,25747.0,25746.0,5.22107487]
[1693950296159,0.004,25747.0,25746.0,5.24613487]
[1693950296361,0.004,25747.0,25746.0,5.24553487]
[1693950296626,0.002,25747.0,25746.0,5.22259487]
[1693950296844,0.004,25747.0,25746.0,5.24765487]
[1693950297068,0.004,25747.0,25746.0,5.24753487]
[1693950297280,0.004,25747.0,25746.0,5.24759487]
[1693950297669,0.004,25747.0,25746.0,5.24765487]
[1693950297895,0.004,25747.0,25746.0,5.24855487]
[1693950298082,0.004,25747.0,25746.0,5.24861487]
[1693950298450,0.004,25747.0,25746.0,5.24915487]
[1693950298653,0.004,25747.0,25746.0,5.14765487]
[1693950299006,0.004,25747.0,25746.0,5.24801487]
[1693950299185,0.004,25747.0,25746.0,5.24807487]
[1693950299813,0.004,25747.0,25746.0,5.24759487]
[1693950300025,0.004,25747.0,25746.0,5.24807487]
[1693950300244,0.004,25747.0,25746.0,5.24897487]
[1693950300419,0.004,25747.0,25746.0,5.48191896]
[1693950300644,0.004,25747.0,25746.0,5.48083896]
[1693950300844,0.004,25747.0,25746.0,5.48665896]
[1693950301045,0.004,25747.0,25746.0,5.48083896]
[1693950301263,0.004,25747.0,25746.0,5.48107896]
[1693950301409,0.004,25747.0,25746.0,5.48041896]
[1693950301620,0.004,25747.0,25746.0,5.48149896]
[1693950301822,0.004,25747.0,25746.0,5.48221896]
[1693950302026,0.004,25747.0,25746.0,5.48251896]
[1693950302246,0.004,25747.0,25746.0,5.48275896]
[1693950302590,0.004,25747.0,25746.0,5.48257896]
[1693950302717,0.004,25747.0,25746.0,5.48215896]
[1693950302924,0.004,25747.0,25746.0,5.48197896]
[1693950303129,0.004,25747.0,25746.0,5.48065896]
[1693950303357,0.004,25747.0,25746.0,5.48125896]
[1693950303534,0.004,25747.0,25746.0,5.48131896]
[1693950303730,0.004,25747.0,25746.0,5.29733969]
[1693950304007,0.004,25747.0,25746.0,5.29619969]
[1693950304185,0.004,25747.0,25746.0,5.29613969]
[1693950304729,0.004,25747.0,25746.0,5.29547969]
[1693950304931,0.004,25747.0,25746.0,5.29553969]
[1693950305340,0.004,25747.0,25746.0,5.29535969]
[1693950305952,0.004,25747.0,25746.0,5.29553969]
[1693950306155,0.004,25747.0,25746.0,5.29559969]
[1693950306367,0.004,25747.0,25746.0,5.29565969]
[1693950306749,0.004,25747.0,25746.0,5.29535969]
[1693950306949,0.004,25747.0,25746.0,5.29547969]
[1693950307222,0.004,25747.0,25746.0,5.29541969]
[1693950307532,0.004,25747.0,25746.0,5.29565969]
[1693950307677,0.004,25747.0,25746.0,5.29625969]
[1693950307877,0.004,25747.0,25746.0,5.29631969]
[1693950308259,0.004,25747.0,25746.0,5.29637969]
[1693950308485,0.004,25747.0,25746.0,5.29517969]
[1693950308672,0.004,25747.0,25746.0,5.29559969]
[1693950308876,0.004,25747.0,25746.0,5.29583969]
[1693950309467,0.004,25747.0,25746.0,5.29589969]
[1693950309676,0.004,25747.0,25746.0,5.29571969]
[1693950310081,0.004,25747.0,25746.0,5.29577969]
[1693950310261,0.004,25747.0,25746.0,5.29523969]
[1693950310417,0.004,25747.0,25746.0,5.21523969]
[1693950310800,0.004,25747.0,25746.0,5.21661969]
[1693950310995,0.004,25747.0,25746.0,5.21535969]
[1693950311196,0.004,25747.0,25746.0,5.21643969]
[1693950311427,0.004,25747.0,25746.0,5.21655969]
[1693950311634,0.004,25747.0,25746.0,5.21589969]
[1693950312467,0.004,25747.0,25746.0,5.21571969]
[1693950312872,0.004,25747.0,25746.0,5.21595969]
[1693950313002,0.004,25747.0,25746.0,5.21601969]
[1693950313409,0.004,25747.0,25746.0,5.21517969]
[1693950313612,0.004,25747.0,25746.0,5.21571969]
[1693950313810,0.004,25747.0,25746.0,5.21625969]
[1693950314040,0.004,25747.0,25746.0,5.21589969]
[1693950314436,0.004,25747.0,25746.0,5.21601969]
[1693950314660,0.004,25747.0,25746.0,5.21619969]
[1693950314856,0.004,25747.0,25746.0,5.21631969]
[1693950315205,0.004,25747.0,25746.0,5.21625969]
[1693950315334,0.004,25747.0,25746.0,5.21631969]
[1693950315508,0.004,25747.0,25746.0,5.21487969]
[1693950315712,0.004,25747.0,25746.0,5.21625969]
[1693950316161,0.004,25747.0,25746.0,5.21571969]
[1693950316339,0.004,25747.0,25746.0,5.21631969]
[1693950317891,0.004,25747.0,25746.0,5.21619969]
[1693950318094,0.004,25747.0,25746.0,5.21631969]
[1693950318394,0.004,25747.0,25746.0,5.21493969]
[1693950318664,0.004,25747.0,25746.0,5.21475969]
[1693950318841,0.004,25747.0,25746.0,5.21487969]
[1693950319142,0.004,25747.0,25746.0,5.21493969]
[1693950319568,0.004,25747.0,25746.0,5.21475969]
[1693950319778,0.004,25747.0,25746.0,5.21451969]
[1693950320569,0.004,25747.0,25746.0,5.21433969]
[1693950320773,0.004,25747.0,25746.0,5.21157969]
[1693950320944,0.004,25747.0,25746.0,5.21169969]
[1693950321155,0.004,25747.0,25746.0,5.21133969]
[1693950321334,0.004,25747.0,25746.0,5.21121969]
[1693950321529,0.004,25747.0,25746.0,5.21127969]
[1693950321737,0.004,25747.0,25746.0,5.14521969]
[1693950322006,0.004,25747.0,25746.0,5.21139969]
[1693950322183,0.004,25747.0,25746.0,5.21145969]
[1693950322343,0.004,25747.0,25746.0,5.21175969]
[1693950322543,0.004,25747.0,25746.0,5.21139969]
[1693950322748,0.004,25747.0,25746.0,5.21157969]
[1693950322931,0.004,25747.0,25746.0,5.21151969]
[1693950323385,0.004,25747.0,25746.0,4.9812156]
[1693950323613,0.004,25747.0,25746.0,4.9808556]
[1693950323817,0.004,25747.0,25746.0,4.9810956]
[1693950324016,0.004,25747.0,25746.0,5.21351573]
[1693950324347,0.004,25747.0,25746.0,5.21315573]
[1693950324565,0.004,25747.0,25746.0,5.21345573]
[1693950325384,0.004,25747.0,25746.0,5.21111573]
[1693950325851,0.004,25747.0,25746.0,5.21117573]
[1693950326120,0.004,25747.0,25746.0,5.21105573]
[1693950326303,0.004,25747.0,25746.0,5.21111573]
[1693950326507,0.004,25747.0,25746.0,5.14565573]
[1693950326739,0.004,25747.0,25746.0,5.21189573]
[1693950326943,0.004,25747.0,25746.0,5.14565573]
[1693950327565,0.004,25747.0,25746.0,5.21093573]
[1693950327770,0.004,25747.0,25746.0,5.19093573]
[1693950327949,0.004,25747.0,25746.0,5.12565573]
[1693950328167,0.004,25747.0,25746.0,5.19314057]
[1693950328308,0.004,25747.0,25746.0,5.19338057]
[1693950328647,0.004,25747.0,25746.0,5.19260057]
[1693950328862,0.004,25747.0,25746.0,5.19332057]
[1693950329062,0.004,25747.0,25746.0,5.19272057]
[1693950329358,0.004,25747.0,25746.0,5.19170057]
[1693950329511,0.004,25747.0,25746.0,5.19212057]
[1693950329709,0.004,25747.0,25746.0,5.19218057]
[1693950330074,0.004,25747.0,25746.0,5.19290057]
[1693950330205,0.004,25747.0,25746.0,5.19236057]
[1693950330571,0.004,25747.0,25746.0,5.19272057]
[1693950330771,0.004,25747.0,25746.0,5.19254057]
[1693950330967,0.004,25747.0,25746.0,5.19260057]
[1693950331202,0.004,25747.0,25746.0,5.19296057]
[1693950331411,0.004,25747.0,25746.0,5.19140057]
[1693950331622,0.004,25747.0,25746.0,5.19338057]
[1693950331820,0.004,25747.0,25746.0,5.19307218]
[1693950332028,0.004,25747.0,25746.0,5.19313218]
[1693950332227,0.004,25747.0,25746.0,5.19289218]
[1693950332709,0.004,25747.0,25746.0,5.19277218]
[1693950333398,0.004,25747.0,25746.0,5.19205218]
[1693950333610,0.004,25747.0,25746.0,5.19127218]
[1693950333818,0.004,25747.0,25746.0,5.19247218]
[1693950334018,0.004,25747.0,25746.0,5.19259218]
[1693950334425,0.004,25747.0,25746.0,5.19151218]
[1693950334626,0.004,25747.0,25746.0,5.19127218]
[1693950334834,0.004,25747.0,25746.0,5.19157218]
[1693950335255,0.004,25747.0,25746.0,5.19235218]
[1693950335461,0.004,25747.0,25746.0,5.19223218]
[1693950335613,0.004,25747.0,25746.0,5.19193218]
[1693950335816,0.004,25747.0,25746.0,5.19122684]
[1693950336016,0.004,25747.0,25746.0,5.19242684]
[1693950336221,0.004,25747.0,25746.0,5.19218684]
[1693950336543,0.004,25747.0,25746.0,5.19230684]
[1693950337136,0.004,25747.0,25746.0,5.19296684]
[1693950337294,0.004,25747.0,25746.0,5.19308684]
[1693950337531,0.004,25747.0,25746.0,5.19254684]
[1693950337733,0.004,25747.0,25746.0,5.19284684]
[1693950338137,0.004,25747.0,25746.0,5.19302684]
[1693950338339,0.004,25747.0,25746.0,5.19308684]
[1693950338545,0.004,25747.0,25746.0,5.19302684]
[1693950338745,0.004,25747.0,25746.0,4.95948187]
[1693950338969,0.004,25747.0,25746.0,4.96326187]
[1693950339173,0.004,25747.0,25746.0,5.19356971]
[1693950339343,0.004,25747.0,25746.0,5.19350971]
[1693950339725,0.004,25747.0,25746.0,4.73458499]
[1693950339927,0.004,25747.0,25746.0,4.69693142]
[1693950340061,0.004,25747.0,25746.0,5.04644743]
[1693950340240,0.004,25747.0,25746.0,4.88554932]
[1693950340446,0.004,25747.0,25746.0,4.89574932]
[1693950340667,0.004,25747.0,25746.0,4.89550932]
[1693950340873,0.004,25747.0,25746.0,4.89538932]
[1693950341073,0.004,25747.0,25746.0,5.07249132]
[1693950341281,0.004,25747.0,25746.0,5.07213132]
[1693950341492,0.004,25747.0,25746.0,5.07189132]
[1693950342295,0.004,25747.0,25746.0,5.07177132]
[1693950342503,0.004,25747.0,25746.0,5.07129132]
[1693950342708,0.004,25747.0,25746.0,5.07105132]
[1693950342907,0.004,25747.0,25746.0,5.07093132]
[1693950343109,0.004,25747.0,25746.0,5.07087132]
[1693950343334,0.004,25747.0,25746.0,5.07063132]
[1693950343514,0.004,25747.0,25746.0,5.06919132]
[1693950343716,0.004,25747.0,25746.0,5.06907132]
[1693950344071,0.004,25747.0,25746.0,5.06877132]
[1693950344215,0.004,25747.0,25746.0,5.26290132]
[1693950344399,0.004,25747.0,25746.0,5.26212132]
[1693950344593,0.004,25747.0,25746.0,5.26200132]
[1693950344807,0.004,25747.0,25746.0,5.26266132]
[1693950345058,0.004,25747.0,25746.0,5.26260132]
[1693950345282,0.004,25747.0,25746.0,5.26248132]
[1693950345525,0.004,25747.0,25746.0,5.26266132]
[1693950345768,0.004,25747.0,25746.0,5.26248132]
[1693950346238,0.004,25747.0,25746.0,5.26236132]
[1693950346649,0.004,25747.0,25746.0,5.26218132]
[1693950346848,0.004,25747.0,25746.0,5.26212132]
[1693950347062,0.004,25747.0,25746.0,5.06787132]
[1693950347282,0.004,25747.0,25746.0,5.26200132]
[1693950347502,0.004,25747.0,25746.0,5.26194132]
[1693950347727,0.004,25747.0,25746.0,5.26182132]
[1693950347901,0.004,25747.0,25746.0,5.26164132]
[1693950348107,0.004,25747.0,25746.0,5.26158132]
[1693950348324,0.004,25747.0,25746.0,5.26146132]
[1693950348516,0.004,25747.0,25746.0,5.26140132]
[1693950348713,0.004,25747.0,25746.0,5.26134132]
[1693950348930,0.004,25747.0,25746.0,5.27178132]
[1693950349101,0.004,25747.0,25746.0,5.26890132]
[1693950349487,0.004,25747.0,25746.0,5.26764132]
[1693950349678,0.004,25747.0,25746.0,5.26752132]
[1693950350011,0.004,25747.0,25746.0,5.26764132]
[1693950350219,0.004,25747.0,25746.0,5.26800132]
[1693950350414,0.004,25747.0,25746.0,5.26806132]
[1693950350647,0.004,25747.0,25746.0,5.26800132]
[1693950350795,0.004,25747.0,25746.0,5.26782132]
[1693950350997,0.004,25747.0,25746.0,5.26764132]
[1693950351249,0.004,25747.0,25746.0,5.07345132]
[1693950351476,0.004,25747.0,25746.0,5.07357132]
[1693950351674,0.004,25747.0,25746.0,5.07309132]
[1693950351878,0.004,25747.0,25746.0,5.08341132]
[1693950352083,0.004,25747.0,25746.0,5.08287132]
[1693950352452,0.004,25747.0,25746.0,5.08263132]
[1693950352681,0.004,25747.0,25746.0,5.08329132]
[1693950353077,0.004,25747.0,25746.0,5.27765132]
[1693950353336,0.004,25747.0,25746.0,5.27531132]
[1693950353567,0.004,25747.0,25746.0,5.08197132]
[1693950353764,0.004,25747.0,25746.0,5.08191132]
[1693950353876,0.004,25747.0,25746.0,5.08143132]
[1693950354077,0.004,25747.0,25746.0,5.08137132]
[1693950354291,0.004,25747.0,25746.0,5.08251132]
[1693950354488,0.004,25747.0,25746.0,5.08257132]
[1693950354735,0.004,25747.0,25746.0,5.08251132]
[1693950354909,0.004,25747.0,25746.0,5.08227132]
[1693950355114,0.004,25747.0,25746.0,5.08353132]
[1693950355437,0.004,25747.0,25746.0,5.08359132]
[1693950355652,0.004,25747.0,25746.0,5.08395132]
[1693950355943,0.004,25747.0,25746.0,5.08401132]
[1693950356090,0.004,25747.0,25746.0,5.08413132]
[1693950356335,0.004,25747.0,25746.0,5.08425132]
[1693950356521,0.004,25747.0,25746.0,5.08437132]
[1693950356715,0.004,25747.0,25746.0,5.08425132]
[1693950356947,0.004,25747.0,25746.0,5.08359132]
[1693950357297,0.004,25747.0,25746.0,5.08443132]
[1693950357732,0.004,25747.0,25746.0,5.08449132]
[1693950357909,0.004,25747.0,25746.0,5.27867132]
[1693950358138,0.004,25747.0,25746.0,5.27873132]
[1693950358344,0.004,25747.0,25746.0,5.27807132]
[1693950358546,0.004,25747.0,25746.0,5.27909132]
[1693950358745,0.004,25747.0,25746.0,5.27987132]
[1693950358943,0.004,25747.0,25746.0,5.28017132]
[1693950359178,0.004,25747.0,25746.0,5.27981132]
[1693950359404,0.004,25747.0,25746.0,5.27903132]
[1693950359576,0.004,25747.0,25746.0,5.27921132]
[1693950359798,0.004,25747.0,25746.0,5.27939132]
[1693950359998,0.004,25747.0,25746.0,5.27909132]
[1693950360204,0.004,25747.0,25746.0,5.27915132]
[1693950360341,0.004,25747.0,25746.0,5.27897132]
[1693950360539,0.004,25747.0,25746.0,5.27903132]
[1693950360744,0.004,25747.0,25746.0,5.27909132]
[1693950361045,0.004,25747.0,25746.0,5.27921132]
[1693950361291,0.004,25747.0,25746.0,5.27825132]
[1693950361807,0.004,25747.0,25746.0,5.27873132]
[1693950362230,0.004,25747.0,25746.0,5.27891132]
[1693950362375,0.004,25747.0,25746.0,5.27903132]
[1693950362586,0.004,25747.0,25746.0,5.32913428]
[1693950362800,0.004,25747.0,25746.0,5.32931428]
[1693950363249,0.004,25747.0,25746.0,5.43175428]
[1693950363584,0.004,25747.0,25746.0,5.43169428]
[1693950364152,0.004,25747.0,25746.0,5.32907428]
[1693950364350,0.004,25747.0,25746.0,5.32901428]
[1693950364545,0.004,25747.0,25746.0,5.32895428]
[1693950364842,0.004,25747.0,25746.0,5.32901428]
[1693950365049,0.004,25747.0,25746.0,5.32895428]
[1693950365247,0.004,25747.0,25746.0,5.32763428]
[1693950365467,0.004,25747.0,25746.0,5.32757428]
[1693950365787,0.004,25747.0,25746.0,5.32733428]
[1693950366020,0.004,25747.0,25746.0,5.32847428]
[1693950366230,0.004,25747.0,25746.0,5.32841428]
[1693950366416,0.004,25747.0,25746.0,5.27957132]
[1693950366614,0.004,25747.0,25746.0,5.26937132]
[1693950366823,0.004,25747.0,25746.0,5.26955132]
[1693950367028,0.004,25747.0,25746.0,5.26979132]
[1693950367241,0.004,25747.0,25746.0,5.26991132]
[1693950367437,0.004,25747.0,25746.0,5.27027132]
[1693950367694,0.004,25747.0,25746.0,5.27039132]
[1693950367894,0.004,25747.0,25746.0,5.27027132]
[1693950368098,0.004,25747.0,25746.0,5.27057132]
[1693950368274,0.004,25747.0,25746.0,5.27063132]
[1693950368679,0.004,25747.0,25746.0,5.26757132]
[1693950368885,0.004,25747.0,25746.0,5.26799132]
[1693950369101,0.004,25747.0,25746.0,5.26835132]
[1693950369263,0.004,25747.0,25746.0,5.26847132]
[1693950369437,0.004,25747.0,25746.0,5.26859132]
[1693950369637,0.004,25747.0,25746.0,5.26733132]
[1693950369869,0.004,25747.0,25746.0,5.26883132]
[1693950370332,0.004,25747.0,25746.0,5.26865132]
[1693950370531,0.004,25747.0,25746.0,5.26871132]
[1693950370759,0.004,25747.0,25746.0,5.26877132]
[1693950370945,0.004,25747.0,25746.0,5.26883132]
[1693950371069,0.004,25747.0,25746.0,5.26895132]
[1693950371274,0.004,25747.0,25746.0,5.26907132]
[1693950371628,0.004,25747.0,25746.0,5.26937132]
[1693950372037,0.004,25747.0,25746.0,5.26931132]
[1693950372234,0.004,25747.0,25746.0,5.26955132]
[1693950372440,0.004,25747.0,25746.0,5.26943132]
[1693950372612,0.004,25747.0,25746.0,5.26955132]
[1693950372821,0.004,25747.0,25746.0,5.26973132]
[1693950373027,0.004,25747.0,25746.0,5.26979132]
[1693950373230,0.004,25747.0,25746.0,5.26991132]
[1693950373429,0.004,25747.0,25746.0,5.27015132]
[1693950373616,0.004,25747.0,25746.0,5.27033132]
[1693950373818,0.004,25747.0,25746.0,5.27039132]
[1693950374058,0.004,25747.0,25746.0,5.27045132]
[1693950374415,0.004,25747.0,25746.0,5.27063132]
[1693950374761,0.004,25747.0,25746.0,5.27075132]
[1693950374962,0.004,25747.0,25746.0,5.27081132]
[1693950375136,0.004,25747.0,25746.0,5.27087132]
[1693950375340,0.004,25747.0,25746.0,5.26871132]
[1693950375539,0.004,25747.0,25746.0,5.26991132]
[1693950375820,0.004,25747.0,25746.0,5.27063132]
[1693950376185,0.004,25747.0,25746.0,5.27009132]
[1693950376524,0.004,25747.0,25746.0,5.27027132]
[1693950376722,0.004,25747.0,25746.0,5.27285132]
[1693950376952,0.004,25747.0,25746.0,5.27333132]
[1693950377149,0.004,25747.0,25746.0,5.27321132]
[1693950377362,0.004,25747.0,25746.0,5.27165132]
[1693950377551,0.004,25747.0,25746.0,5.27153132]
[1693950377763,0.004,25747.0,25746.0,5.27165132]
[1693950377974,0.004,25747.0,25746.0,5.27171132]
[1693950378341,0.004,25747.0,25746.0,5.29391132]
[1693950378494,0.004,25747.0,25746.0,5.29379132]
[1693950378698,0.004,25747.0,25746.0,5.29463132]
[1693950378900,0.004,25747.0,25746.0,5.29457132]
[1693950379141,0.004,25747.0,25746.0,5.29445132]
[1693950379483,0.004,25747.0,25746.0,5.29421132]
[1693950379686,0.004,25747.0,25746.0,5.29415132]
[1693950379885,0.004,25747.0,25746.0,5.29403132]
[1693950380292,0.004,25747.0,25746.0,5.27531132]
[1693950380465,0.004,25747.0,25746.0,5.28029132]
[1693950380675,0.004,25747.0,25746.0,5.27675132]
[1693950380875,0.004,25747.0,25746.0,5.27939132]
[1693950381080,0.004,25747.0,25746.0,4.88837161]
[1693950381275,0.004,25747.0,25746.0,5.27889025]
[1693950381600,0.004,25747.0,25746.0,5.27751025]
[1693950381824,0.004,25747.0,25746.0,5.27733025]
[1693950382096,0.004,25747.0,25746.0,5.27751025]
[1693950382335,0.004,25747.0,25746.0,5.27757025]
[1693950382539,0.004,25747.0,25746.0,5.27739025]
[1693950382747,0.004,25747.0,25746.0,5.27757025]
[1693950383015,0.004,25747.0,25746.0,5.28219025]
[1693950383212,0.004,25747.0,25746.0,5.28225025]
[1693950383414,0.004,25747.0,25746.0,5.26219025]
[1693950383547,0.004,25747.0,25746.0,5.28225025]
[1693950383966,0.004,25747.0,25746.0,5.28207025]
[1693950384476,0.004,25747.0,25746.0,5.28105025]
[1693950384677,0.004,25747.0,25746.0,5.28291025]
[1693950385032,0.004,25747.0,25746.0,5.28225025]
[1693950385231,0.004,25747.0,25746.0,5.28219025]
[1693950385787,0.004,25747.0,25746.0,5.28093025]
[1693950386191,0.004,25747.0,25746.0,5.28195025]
[1693950386391,0.004,25747.0,25746.0,5.28111025]
[1693950386667,0.004,25747.0,25746.0,5.28129025]
[1693950386843,0.004,25747.0,25746.0,5.27991025]
[1693950387062,0.004,25747.0,25746.0,5.27979025]
[1693950387242,0.004,25747.0,25746.0,5.28099025]
[1693950387640,0.004,25747.0,25746.0,5.28111025]
[1693950387981,0.004,25747.0,25746.0,5.28177025]
[1693950388176,0.004,25747.0,25746.0,5.28165025]
[1693950388402,0.004,25747.0,25746.0,5.28129025]
[1693950388605,0.004,25747.0,25746.0,5.28123025]
[1693950388782,0.004,25747.0,25746.0,5.28195025]
[1693950388994,0.004,25747.0,25746.0,5.28189025]
[1693950389336,0.004,25747.0,25746.0,5.28165025]
[1693950389565,0.004,25747.0,25746.0,5.28243025]
[1693950389955,0.004,25747.0,25746.0,5.28249025]
[1693950390071,0.004,25747.0,25746.0,5.29383025]
[1693950390267,0.004,25747.0,25746.0,5.28129025]
[1693950390516,0.004,25747.0,25746.0,5.28111025]
[1693950390732,0.004,25747.0,25746.0,5.28207025]
[1693950391127,0.004,25747.0,25746.0,5.28105025]
[1693950391334,0.004,25747.0,25746.0,5.28201025]
[1693950391634,0.004,25747.0,25746.0,5.28219025]
[1693950391862,0.004,25747.0,25746.0,5.28213025]
[1693950392041,0.004,25747.0,25746.0,5.28177025]
[1693950392246,0.004,25747.0,25746.0,5.28111025]
[1693950392445,0.004,25747.0,25746.0,5.28213025]
[1693950392979,0.004,25747.0,25746.0,5.28207025]
[1693950393223,0.004,25747.0,25746.0,5.28213025]
[1693950393429,0.004,25747.0,25746.0,5.28207025]
[1693950393641,0.004,25747.0,25746.0,5.28945025]
[1693950393813,0.004,25747.0,25746.0,5.28939025]
[1693950394012,0.004,25747.0,25746.0,5.29059025]
[1693950394208,0.004,25747.0,25746.0,5.29035025]
[1693950394448,0.002,25747.0,25746.0,5.26523025]
[1693950394660,0.04992535,25749.0,25748.0,0.4686]
[1693950394828,0.04992535,25749.0,25748.0,6.13883649]
[1693950395007,0.1661,25751.0,25750.0,0.4086]
[1693950395213,0.02,25753.0,25750.0,0.89774527]
[1693950395417,0.02,25753.0,25751.0,4.00441727]
[1693950395919,0.02,25753.0,25752.0,0.00035801]
[1693950396121,0.02,25753.0,25752.0,2.71691728]
[1693950397562,0.25413756,25754.0,25752.0,2.71691728]
[1693950397740,0.02,25753.0,25752.0,2.33027201]
[1693950397967,0.022,25753.0,25752.0,2.33227201]
[1693950398451,0.022,25753.0,25752.0,2.33427201]
[1693950398452,0.027,25753.0,25752.0,2.33427201]
[1693950399386,0.025,25753.0,25752.0,2.33227201]
[1693950399589,0.025,25753.0,25752.0,2.3635859]
[1693950399814,0.025,25753.0,25752.0,2.75023117]
[1693950400149,0.025,25753.0,25752.0,2.74823117]
[1693950400502,0.027,25753.0,25752.0,2.75023117]
[1693950406468,0.007,25753.0,25752.0,2.75023117]
[1693950407942,0.007,25753.0,25752.0,2.85273117]
[1693950412386,0.007,25753.0,25752.0,2.75023117]
[1693950418891,0.007,25753.0,25752.0,2.85273117]
[1693950423942,0.007,25753.0,25752.0,2.75023117]
[1693950424759,0.007,25753.0,25752.0,3.45023117]
[1693950428782,0.005,25753.0,25752.0,3.44823117]
[1693950429004,0.007,25753.0,25752.0,3.44823117]
[1693950429439,0.002,25753.0,25752.0,3.44623117]
[1693950430340,0.02,25755.0,25752.0,3.44623117]
[1693950430536,0.02,25755.0,25753.0,0.38664527]
[1693950430810,0.02,25755.0,25754.0,2.329734]
[1693950431013,0.02,25755.0,25754.0,2.71673624]
[1693950431392,0.022,25755.0,25754.0,2.71673624]
[1693950431843,0.02,25755.0,25754.0,2.71673624]
[1693950432312,0.022,25755.0,25754.0,2.71873624]
[1693950432897,0.027,25755.0,25754.0,2.72073624]
[1693950435373,0.1295,25755.0,25754.0,2.72073624]
[1693950444857,0.1295,25755.0,25754.0,2.74998787]
[1693950447054,0.027,25755.0,25754.0,2.74998787]
[1693950448542,0.025,25755.0,25754.0,2.74798787]
[1693950448960,0.022,25755.0,25754.0,2.74698787]
[1693950449363,0.025,25755.0,25754.0,2.74598787]
[1693950449790,0.027,25755.0,25754.0,2.74598787]
[1693950461202,0.027,25755.0,25754.0,2.77710626]
[1693950476989,0.027,25755.0,25754.0,3.03426437]
[1693950477212,0.027,25755.0,25754.0,2.87960626]
[1693950477431,0.007,25755.0,25754.0,2.87960626]
[1693950480865,0.007,25755.0,25754.0,2.77710626]
[1693950481729,0.007,25755.0,25754.0,2.87960626]
[1693950483171,0.007,25755.0,25754.0,2.77710626]
[1693950489661,0.027,25755.0,25754.0,2.77710626]
[1693950489832,0.99928556,25755.0,25754.0,0.06072699]
[1693950490034,1.91568991,25755.0,25754.0,0.0296086]
[1693950490441,1.13914191,25755.0,25754.0,0.0296086]
[1693950491565,0.99928556,25755.0,25754.0,0.0296086]
[1693950492409,1.13914191,25755.0,25754.0,0.0296086]
[1693950492633,0.99928556,25755.0,25754.0,0.0296086]
[1693950497306,0.22273756,25755.0,25754.0,0.0296086]
[1693950510238,0.20273756,25755.0,25754.0,0.0296086]
[1693950512273,0.97928556,25755.0,25754.0,0.0296086]
[1693950512402,0.20273756,25755.0,25754.0,0.0296086]
[1693950514577,0.97928556,25755.0,25754.0,0.0296086]
[1693950515078,0.20273756,25755.0,25754.0,0.0296086]
[1693950515416,0.20273756,25755.0,25754.0,0.8061866]
[1693950520661,0.97928556,25755.0,25754.0,0.0296086]
[1693950520900,1.23512196,25755.0,25754.0,0.0296086]
[1693950521625,0.97928556,25755.0,25754.0,0.0296086]
[1693950528880,0.20273756,25755.0,25754.0,0.0296086]
[1693950531234,0.34259391,25755.0,25754.0,0.0296086]
[1693950531773,0.20273756,25755.0,25754.0,0.0296086]
[1693950531979,0.34259391,25755.0,25754.0,0.0296086]
[1693950535448,0.24935635,25755.0,25754.0,0.0296086]
[1693950539616,0.24935635,25755.0,25754.0,0.8061866]
[1693950540525,0.3426078,25755.0,25754.0,0.8061866]
[1693950540863,0.24935635,25755.0,25754.0,0.8061866]
[1693950559903,1.02590435,25755.0,25754.0,0.0296086]
[1693950561291,1.34296819,25755.0,25754.0,0.0296086]
[1693950561496,1.52944332,25755.0,25754.0,0.0296086]
[1693950566496,3.55548844,25755.0,25754.0,0.0296086]
[1693950566740,3.77151331,25755.0,25754.0,0.0296086]
[1693950566854,3.79151331,25755.0,25754.0,0.02925163]
[1693950567065,4.8700145,25755.0,25754.0,0.02925163]
[1693950567263,4.94115039,25755.0,25754.0,0.02925163]